Cogmind - Beta 13 @@@ ROGUE MODE // 2024.04.02 @ 00:37:07 Player: Olafz Result: Destroyed by S-10 Pest with Light Assault Rifle Performance ------------- Evolutions (1) 500 Regions Visited (3) 600 Robots Destroyed (19) 95 Value Destroyed (523) 523 Prototype IDs (1) 20 Alien Tech Used (0) 0 Bonus (0) 0 TOTAL SCORE: 1738 Bonus ------- None Cogmind --------- Core Integrity 0/400 Matter 300/300 Energy 120/125 System Corruption 3% Temperature Cool (0) Movement Flying (34) Location -9/Storage Parts ------- > --- POWER (1) -------- Light Ion Engine > --- PROPULSION (3) --- Flight Unit Flight Unit Flight Unit > --- UTILITY (3) ------ Weight Redist. System Weapon Shielding > --- WEAPON (2) ------- Maul Maul > --- INVENTORY (5) ---- Flight Unit VTOL Module Peak State ------------ > --- POWER ------------ (None) > --- PROPULSION ------- Improved Flight Unit Improved Flight Unit > --- UTILITY ---------- Weight Redist. System > --- WEAPON ----------- Maul Maul > --- INVENTORY -------- Light Ion Engine Flight Unit Flight Unit Flight Unit Flight Unit [Rating: 12] Favorites ----------- Power Light Ion Engine Engine Light Ion Engine Propulsion Flight Unit Leg Aluminum Leg Flight Unit Flight Unit Utility Small Storage Unit Device Weight Redist. System Storage Small Storage Unit Protection Weapon Shielding Weapon Maul Ballistic Gun Light Assault Rifle Impact Weapon Maul Build | -11 -10 -9 -9 ------- Run | Yrd Mat Mat Sto Slots Evolved 2 | . . 2 . Power . | . . . . Propulsion 1 | . . 1 . Utility 1 | . . 1 . Weapon . | . . . . Parts Attached 23 | 6 5 1 11 Power 2 | 1 . . 1 Engine 2 | 1 . . 1 Core . | . . . . Reactor . | . . . . Propulsion 10 | 2 2 1 5 Treads . | . . . . Leg 2 | 2 . . . Wheel . | . . . . Hover . | . . . . Flight 8 | . 2 1 5 Utility 4 | 1 . . 3 Device 2 | . . . 2 Storage 1 | 1 . . . Processor . | . . . . Hackware . | . . . . Protection 1 | . . . 1 Artifact . | . . . . Weapon 7 | 2 3 . 2 Energy Gun . | . . . . Energy Cannon . | . . . . Ballistic Gun 3 | 2 1 . . Ballistic Cannon . | . . . . Launcher . | . . . . Special Weapon . | . . . . Impact Weapon 4 | . 2 . 2 Slashing Weapon . | . . . . Piercing Weapon . | . . . . Special Melee Weapon . | . . . . Unidentified Prototypes 1 | . . . 1 Parts Lost 5 | . 1 . 4 Power 1 | . 1 . . Propulsion 3 | . . . 3 Utility 1 | . . . 1 Weapon . | . . . . Highest Loss Streak 4 | . 1 . 4 To Critical Strikes . | . . . . Average Slot Usage (%) 63 | . 77 55 55 Engine 4 | . 8 . 2 Leg 8 | . 23 . . Flight 18 | . 3 33 27 Device 1 | . . . 3 Storage 4 | . 12 . . Protection 1 | . . . 2 Ballistic Gun 2 | . 7 . . Impact Weapon 20 | . 20 22 19 Naked Turns . | . . . . Heaviest Build 14 | 10 14 6 10 Greatest Support 20 | 20 20 12 18 Greatest Overweight (x) 1 | 1 . . 1 Average Overweight (x) . | . . . . Largest Inventory Capacity 8 | 8 8 5 5 Average Capacity 6 | 6 7 5 5 Most Carried 7 | 1 7 3 5 Average Carried 3 | . 3 2 3 Final Capacity 8 | 8 5 5 5 Final Carried 3 | 1 3 3 2 Class Distribution -------------------- 100% | Mutant Dominant Class ---------------- Mutant | -10/Materials Mutant | -9/Materials Mutant | -9/Storage Resources | -11 -10 -9 -9 ----------- Run | Yrd Mat Mat Sto Matter Collected 406 | . 174 . 232 Remotely . | . . . . Salvage Created 728 | . 255 . 473 Parts 26 | . 10 . 16 Haulers Intercepted 1 | . . . 1 Recyclers Shooed 1 | . 1 . . Parts Field Recycled . | . . . . Retrieved Matter . | . . . . Parts Self-Destructed . | . . . . Prevented . | . . . . Kills | -11 -10 -9 -9 ------- Run | Yrd Mat Mat Sto Combat Hostiles Destroyed 14 | . 4 . 10 Melee 11 | . 4 . 7 Classes Destroyed 6 | . 3 . 3 Worker 2 | . . . 2 Hauler 1 | . . . 1 Recycler 2 | . 2 . . Swarmer 1 | . 1 . . Grunt 8 | . 3 . 5 Sentry 5 | . . . 5 Best Kill Streak 6 | . 4 . 6 Combat Bots Only 4 | . 2 . 4 Max Kills in Single Turn 1 | . 1 . 1 Gunslinging . | . . . . Exploded . | . . . . Melee 1 | . 1 . 1 Uniques/NPCs Destroyed . | . . . . Combat | -11 -10 -9 -9 -------- Run | Yrd Mat Mat Sto Hostile Shots Fired 118 | . 43 . 75 Missed 36 | . 13 . 23 Damage Taken 999 | . 286 . 713 Core 469 | . 64 . 405 Absorbed by Shields . | . . . . Regen/Repaired (Parts) 135 | . . . 135 Core Remaining (%) 87 | 100 74 . . Volleys Fired 1 | . 1 . . Largest 2 | . 2 . . Hottest 40 | . 40 . . Shots Fired 2 | . 2 . . Gun 2 | . 2 . . Cannon . | . . . . Launcher . | . . . . Special . | . . . . Kinetic 2 | . 2 . . Thermal . | . . . . Explosive . | . . . . Electromagnetic . | . . . . Robot Hit Streak 1 | . 1 . . Robot Miss Streak 1 | . 1 . . Penetration Max . | . . . . Secondary Targets . | . . . . Shots Hit Robots 46 | . 11 . 35 Core Hits 11 | . 3 . 8 Critical Kills 5 | . 2 . 3 Critical Parts Destroyed 3 | . 1 . 2 Critical Strikes 9 | . 3 . 6 Smash 9 | . 3 . 6 Melee Attacks 62 | . 15 . 47 Impact 62 | . 15 . 47 Slashing . | . . . . Piercing . | . . . . Sneak Attacks 7 | . 3 . 4 Combat Hostiles . | . . . . Follow-up Attacks 8 | . 1 . 7 Damage Inflicted 2001 | 12 498 . 1491 Guns 6 | . 6 . . Cannons . | . . . . Explosions . | . . . . Melee 1983 | . 492 . 1491 Ramming 12 | 12 . . . Kinetic 6 | . 6 . . Thermal . | . . . . Explosive . | . . . . Electromagnetic . | . . . . Impact 1983 | . 492 . 1491 Slashing . | . . . . Piercing . | . . . . Highest Corruption 3 | . . . 3 Average Corruption 2 | . . . 2 Corruption Purged . | . . . . Corruption Blocked . | . . . . Effects 1 | . . . 1 Message Errors 1 | . . . 1 Overload Shots . | . . . . Overflow Damage 418 | . 176 . 242 Projectiles . | . . . . Explosions . | . . . . Melee 418 | . 176 . 242 Knockbacks 4 | . 1 . 3 Impact 4 | . 1 . 3 Kinetic . | . . . . Secondary . | . . . . Self-Inflicted Damage . | . . . . Shots . | . . . . Rammed . | . . . . Targets Rammed 4 | 4 . . . Kicked 4 | 4 . . . Crushed . | . . . . Highest Temperature . | . . . . Average Temperature . | . . . . Received Heat Transfer 351 | . 96 . 255 Siege Activations . | . . . . Robots Corrupted . | . . . . Combat Hostiles . | . . . . Parts Fried 5 | . . . 5 Impact Corruptions 15 | . 5 . 10 Robots Melted . | . . . . Combat Hostiles . | . . . . Parts Melted . | . . . . Heat Transferred . | . . . . Parts Sabotaged . | . . . . Parts Stolen . | . . . . Parts Stripped . | . . . . Power Chain Reactions . | . . . . Alert | -11 -10 -9 -9 ------- Run | Yrd Mat Mat Sto Peak Influence 378 | . 100 42 378 Initial 42 | . . 42 17 Average 127 | . 31 42 208 Maximum Alert Level 1 | . . . 1 Low Security (%) 62 | 100 100 100 32 Level 1 37 | . . . 67 Level 2 . | . . . . Level 3 . | . . . . Level 4 . | . . . . Level 5 . | . . . . High Security . | . . . . Max Security . | . . . . Squads Dispatched 2 | . 2 . . Investigation 1 | . 1 . . Extermination . | . . . . Reinforcement 1 | . 1 . . Assault . | . . . . Garrison . | . . . . Intercept . | . . . . Searches Triggered . | . . . . Construction Impeded . | . . . . Haulers Reinforced . | . . . . Active Scanning Responses . | . . . . Cargo Convoy Interrupts . | . . . . Stealth | -11 -10 -9 -9 --------- Run | Yrd Mat Mat Sto Distress Signals 2 | . . . 2 Communications Jammed . | . . . . Distress Signals . | . . . . Times Spotted 25 | . 7 . 18 Peak Tracking Total 6 | . 3 . 6 Tactical Retreats . | . . . . Traps | -11 -10 -9 -9 ------- Run | Yrd Mat Mat Sto Traps Triggered 2 | . 1 . 1 Indirectly . | . . . . Trap Hack Attempts . | . . . . Triggered . | . . . . Disarmed . | . . . . Reprogrammed . | . . . . Reused . | . . . . Traps Extracted . | . . . . Installed . | . . . . Triggered . | . . . . Machines | -11 -10 -9 -9 ---------- Run | Yrd Mat Mat Sto Machines Disabled . | . . . . Max in Single Turn . | . . . . Garrison Access 1 | . . . 1 Machines Repaired . | . . . . Machines Dismantled . | . . . . Machines Sabotaged . | . . . . Overloaded Fab Kills . | . . . . Hacking | -11 -10 -9 -9 --------- Run | Yrd Mat Mat Sto Machines Accessed 6 | . . . 6 Terminals 3 | . . . 3 Fabricators . | . . . . Repair Stations 2 | . . . 2 Recycling Units . | . . . . Scanalyzers . | . . . . Garrison Access 1 | . . . 1 Total Hacks 9 | . . . 9 Successful 8 | . . . 8 Failed 1 | . . . 1 Catastrophic . | . . . . Database Lockouts . | . . . . Manual . | . . . . Terminals 4 | . . . 4 Fabricators . | . . . . Repair Stations 4 | . . . 4 Recycling Units . | . . . . Scanalyzers . | . . . . Garrison Access 1 | . . . 1 Terminal Hacks 3 | . . . 3 Open Door 2 | . . . 2 Locate Traps 1 | . . . 1 Fabricator Hacks . | . . . . Repair Station Hacks 4 | . . . 4 Scan Component 2 | . . . 2 Repair 2 | . . . 2 Recycling Unit Hacks . | . . . . Scanalyzer . | . . . . Garrison Access Hacks 1 | . . . 1 Seal Access 1 | . . . 1 Unauthorized Hacks . | . . . . Terminals . | . . . . Fabricators . | . . . . Repair Stations . | . . . . Recycling Units . | . . . . Scanalyzers . | . . . . Garrison Access . | . . . . Data Cores Recovered . | . . . . Used . | . . . . Hacking Detections 3 | . . . 3 Full Trace Events . | . . . . Feedback Events . | . . . . Feedback Blocked . | . . . . Robot Schematics Acquired . | . . . . Robots Built . | . . . . Authchips . | . . . . Time . | . . . . Total Robot Build Rating . | . . . . Part Schematics Acquired . | . . . . Parts Built . | . . . . Authchips . | . . . . Time . | . . . . Total Part Build Rating . | . . . . Parts Repaired 2 | . . . 2 Time 64 | . . . 64 Parts Recycled . | . . . . Recycled Matter . | . . . . Retrieved Matter . | . . . . Retrieved Components . | . . . . Parts Scanalyzed . | . . . . Part Schematics Acquired . | . . . . Parts Damaged . | . . . . Bothacking | -11 -10 -9 -9 ------------ Run | Yrd Mat Mat Sto Used RIF Installer . | . . . . Robots Hacked . | . . . . Non-combat . | . . . . Combat . | . . . . Robot Hacks Applied . | . . . . Relay Couplers Released . | . . . . Fabnet Peak Effective % . | . . . . Robots Rewired . | . . . . Allies Hacked . | . . . . Hacks Repelled . | . . . . Allies | -11 -10 -9 -9 -------- Run | Yrd Mat Mat Sto Total Allies . | . . . . Largest Group . | . . . . Highest-Rated Group . | . . . . Highest-Rated Ally . | . . . . Total Orders . | . . . . Ally Attacks . | . . . . Total Damage . | . . . . Kills . | . . . . Allies Corrupted . | . . . . Allies Melted . | . . . . Intel | -11 -10 -9 -9 ------- Run | Yrd Mat Mat Sto Robot Analysis Total . | . . . . Derelict Logs Recovered . | . . . . Drone Launches . | . . . . Drone Recoveries . | . . . . Exploration | -11 -10 -9 -9 ------------- Run | Yrd Mat Mat Sto Turns Passed 581 | 55 187 16 323 Spaces Moved 582 | 39 131 40 372 Core 18 | 12 . . 6 Treads . | . . . . Legs 118 | 27 91 . . Wheels . | . . . . Hover . | . . . . Flight 446 | . 40 40 366 Fastest Speed 34 | 50 37 34 34 Average Speed 53 | 104 94 34 35 Slowest Speed 120 | 120 120 34 100 Overloaded Moves . | . . . . Propulsion Burnouts . | . . . . Robots Hopped . | . . . . Cave-ins Triggered . | . . . . Exploration Rate (%) 23 | 3 23 4 65 Regions Visited 3 Branch Regions 1 Pre-discovered Areas . | . . . . Known Exits Taken . | . . . . Unknown Exits Taken 3 | 1 1 1 . Scrap Searched . | . . . . Spaces Dug 1 | . . . 1 Terrain Destroyed 1 | . . . 1 Melee 1 | . . . 1 Projectile . | . . . . AOE . | . . . . Terrain Rammed . | . . . . Walls Destroyed . | . . . . Machines Disabled . | . . . . Actions | -11 -10 -9 -9 --------- Run | Yrd Mat Mat Sto Total 739 | 49 167 41 482 Wait 59 | . 5 . 54 Move 579 | 38 130 39 372 Hop . | . . . . Pick Up 7 | 1 3 1 2 Fast Attach 18 | 6 4 . 8 Attach 4 | . 1 1 2 Detach 6 | . 5 . 1 Swap 1 | . . . 1 Drop 8 | . 5 . 3 Fire 1 | . 1 . . Melee 52 | . 13 . 39 Ram . | . . . . Kick 4 | 4 . . . Crush . | . . . . Escape Stasis . | . . . . Rewire . | . . . . Trap . | . . . . Miscellaneous . | . . . . Route ------- -11/Scrapyard -10/Materials -9/Materials -9/Storage History --------- Turn | Location | Event 8 | -11/Scrapyard | Discovered new exit (range 16) 56 | -11/Scrapyard | Entered Materials 224 | -10/Materials | Discovered new exit (range 16) 243 | -10/Materials | Entered another Materials area 243 | -9/Materials | Evolved 2 slots: Propulsion x1, Utility x1 252 | -9/Materials | Discovered new exit (range 4) 259 | -9/Materials | Entered Storage 310 | -9/Storage | Build established: Mutant 406 | -9/Storage | Repaired Maul 462 | -9/Storage | Core integrity fell below 50% 484 | -9/Storage | Core integrity fell below 20% 488 | -9/Storage | Lost 4 parts (3n1u) 550 | -9/Storage | Repaired Maul 582 | -9/Storage | Destroyed by S-10 Pest with Light Assault Rifle Last Messages --------------- 00545_ Y-45 Defender suffers critical hit (Smash). 00545_ Destroyed Lgt. Treads. 00545_ Y-45 Defender system corrupted by crushing effect. 00545_ K-01 Serf collects debris. 00546_ Y-45 Defender system terminally corrupted. 00546_ Heat Sink fried. 00546_ Imp. Ion Engine fried. 00548_ K-01 Serf collects debris. 00550_ Repair station completes Maul repairs. 00550_ Acquired Maul. 00551_ Acquired 33 matter. 00552_ K-01 Serf collects debris. 00554_ W-16 Scout sends out distress signal. 00555_ Acquired VTOL Module. 00570_ G-34 Mercenary destroyed. 00572_ K-01 Serf collects debris. 00575_ Connecting with Door Terminal... >>Open(Door) Sealed Heavy Doors opened. 00576_ K-01 Serf collects debris. Map ----- +----------------------------------------------------+ | ???????+ + """" # #??#####?????????????????? | | ???????# # """" # %#??#"""#?????????????????? | | ???????# # # ####"G"####??????????????? | | ???????# ########## ##T#" "## #??????????????? | | ???????# #? # # !%*#??????????????? | | ???????# #?""""" # # =[####???????????? | | ???????# # """"" # # """ """ """#???????????? | | ???????# # """"" # # """ """ R"#???????????? | | ???????# # + + """ """ """#???????????? | | ???????# # """"" # # ####???????????? | | ???????+ # """"" ## ## #??????????????? | | ???????# ??""""" ## ## #??????????????? | | ???????# ?? ## ############??????????????? | | ???????# ??######### ####???#####?????????###??? | | ???????# #???#"""#???####### #??? | | ????????#+#???########### #??##"T"##### !!!%[#??? | | ??????????????????####??# #### # ^!! #??? | | ??????????????????? ??# + [ ! # !^ #??? | | ????????????????????" ?# #### # ^^ #??? | | ????????????????????" ## #??# """ #! #??? | | ????????????????????" + #??# """ #^% #??? | | ????????????????????" ##s#??# """ # ^ #??? | | ????????????????????" ?# #??# """ # % """ #??? | | ????????????????????" ??# #??# """ # [ R" #### | | ???????????????????? ??# #??# # %""" ## | | ??????????????????? ???#@#??#####+#### ##"" | | ?????????????####/#######s###### #####+#+###"" | | ?????????? % #"" | | ?????????? + | | ?????????? #"" | | ???????????################+#### #####+###+#"" | | ????????????????????????#T #?######## #"" | | ????????????????????????## #????????# # | | ?????????????????????????#===#????????# ### | | ?????????????????????????#===#????????# [ #?? | | ?????????????????????????#####????????# ! #?? | | ??????????????????????????????????????# ! #?? | | ??????????????????????????????????????# [ #?? | | ??????????????????????????????????????##########?? | | | | | | | | | | | | | | | | | | | | | | | +----------------------------------------------------+ Best States ------------- Heat Dissipation 28 Energy Generation 10 Energy Capacity 125 Matter Stores 300 Matter Capacity 300 Sight Range 16 Terrain Scan Density 10 Additional Mass Support 6 Weapon Shielding 33 Evasion (%) 63 Item Schematics ----------------- None Robot Schematics ------------------ None Fabricated ------------ Nothing Alien Tech Used ----------------- None Achievements -------------- None Challenges ------------ None Game ------ Seed HardenedTrackerRipper Manual? 0 Play Time 00:12:28 Cumulative 11.2 hours Start 2024.04.02 @ 00:24:49 End 2024.04.02 @ 00:37:07 Sessions 1 Manual Loads 0 Difficulty Rogue Special Mode None Game No. 34 Rogue 32 Adventurer 2 Explorer 0 Win Type - Total 0 Types 0/0/0/0/0/0/0/0/0 Lore% 15 Gallery% 16 Achievement% 16 Wizard Run 0 Options --------- Layout 0 ASCII 0 Keyboard 1 Movement Arrows Keybinds 0 Fullscreen 2 Font 18/SmallcapsGlow Map View 76x50 Zoom Use 0% Tactical HUD 1 Map Filters NONE Filters NONE Steam 1 RUN: 895dbe0c-b07d-4e44-9dab-70492d068bc6